Workbook

Sheet Лист1
B12: Согласовано | I12: Разработано и утвеждено
B13: Руководитель общеобразовательного учреждения | I13: Директор ООО "ФУДСОЦСЕРВИС"
B15: ________________________ | I15: ________________Э.Р. Харламова
B20: Примерное цикличное двенадцатидневное меню
B21: Для организации бесплатного горячего питания (горячих завтраков) для обучающихся начальных классов
B22: общеобразовательных организаций Республики Татарстан
B52: ПРИМЕРНОЕ ДВУХНЕДЕЛЬНОЕ МЕНЮ ДЛЯ ОБУЧАЮЩИХСЯ В ОБЩЕОБРАЗОВАТЕЛЬНЫХ ОРГАНИЗАЦИЯХ С 1 по 4 КЛАССЫ
A54: № рецептуры | B54: Наименование блюд | C54: Выход,г | D54: Белки, г | E54: Жиры, г | F54: Углеводы, г | G54: Калорийность, ккал | H54: Витамин B1, мг | I54: Витамин С, мг | J54: Витамин А, мг | K54: Витамин Е, мг | L54: Ca, мг | M54: P, мг | N54: Mg, мг | O54: Fe, мг
B55: 1-ая неделя
B56: 1 день
A57: № 59 Сбор.рец. На прод-ию для обуч. Во всех образ.учреж-Дели 2017 | B57: Салат из моркови с яблоками | C57: 60 | D57: 0.64 | E57: 0.10 | F57: 5.11 | G57: 23.94 | H57: 0.03 | I57: 2.63 | J57: 0.00 | K57: 0.21 | L57: 14.40 | M57: 26.72 | N57: 18.23 | O57: 0.64
A58: № 271 Сбор.рец. На прод-ию для обуч. Во всех образ.учреж-Дели 2017 | B58: Котлета домашняя из говядины | C58: 90 | D58: 8.15 | E58: 10.50 | F58: 8.10 | G58: 199.57 | H58: 0.14 | I58: 0.20 | J58: 2.74 | K58: 2.27 | L58: 13.48 | M58: 104.60 | N58: 16.08 | O58: 1.70
A59: № 203 Сбор.рец. На прод-ию для обуч. Во всех образ.учреж-Дели 2017 | B59: Макаронные изделия отварные с маслом сливочным | C59: 150/5 | D59: 5.12 | E59: 4.53 | F59: 31.99 | G59: 189.30 | H59: 0.06 | I59: 0.00 | J59: 20.00 | K59: 0.82 | L59: 12.39 | M59: 38.67 | N59: 8.62 | O59: 0.86
A60: №349 Сбор.рец. На прод-ию для обуч. Во всех образ.учреж-Дели 2017 | B60: Компот из сухофруктов (75С) | C60: 200 | D60: 0.66 | E60: 0.09 | F60: 22.03 | G60: 92.90 | H60: 0.02 | I60: 0.73 | J60: 0.00 | K60: 0.51 | L60: 32.48 | M60: 23.44 | N60: 17.46 | O60: 0.70
B61: Печенье | C61: 50 | D61: 3.70 | E61: 4.70 | F61: 2.85 | G61: 21.50 | H61: 0.07 | I61: 0.00 | J61: 0.00 | K61: 1.85 | L61: 13.00 | M61: 42.00 | N61: 15.00 | O61: 0.70
A62: Хим.состав и калорийность российских продуктов питания,табл 6, стр 144 , 2012 Дели + | B62: Хлеб ржаной | C62: 20 | D62: 1.32 | E62: 0.54 | F62: 17.82 | G62: 89.10 | H62: 0.08 | I62: 0.00 | J62: 0.00 | K62: 0.63 | L62: 13.05 | M62: 67.50 | N62: 21.15 | O62: 1.76 | P62: 0 | Q62: 0
B63: Итого: | C63: 575 | D63: =D57+D58+D59+D60+D62+D61 -> 19.59 | E63: 20.46 | F63: 87.90 | G63: 616.31 | H63: 0.38 | I63: 3.55 | J63: 22.74 | K63: 6.29 | L63: 98.80 | M63: 302.92 | N63: 96.54 | O63: 6.36 | P63: 0.00 | Q63: 0.00
B65: 2 день
A66: Хим.состав и калорийность российских продуктов питания табл 9 стр 186 , 2012 Дели + | B66: Плоды и ягоды свежие (мандарин) | C66: 100 | D66: 0.8 | E66: 0.20 | F66: 7.5 | G66: 38.0 | H66: 0.06 | I66: 38.00 | K66: 0.20 | L66: 35.00 | M66: 17.00 | N66: 11.00 | O66: 0.10
A67: № 15 Сбор.рец. На прод-ию для обуч. Во всех образ.учреж-Дели -2017 | B67: Сыр порционно | C67: 10 | D67: 2.63 | E67: 2.66 | F67: 0.00 | G67: 34.33 | H67: 0.00 | I67: 0.07 | J67: 21.00 | K67: 0.04 | L67: 100.00 | M67: 60.00 | N67: 5.50 | O67: 0.07
A68: № 260 Сбор.рец. На прод-ию для обуч. Во всех образ.учреж-Дели -2017 | B68: Гуляш из говядины | C68: 50/50 | D68: 10.45 | E68: 10.71 | F68: 22.89 | G68: 221.00 | H68: 0.03 | I68: 0.92 | K68: 2.61 | L68: 21.81 | M68: 154.15 | N68: 22.03 | O68: 3.06
A69: № 171 Сбор.рец. На прод-ию для обуч. Во всех образ.учреж-Дели 2017 | B69: Каша гречневая рассыпчатая с маслом сливочным | C69: 150/5 | D69: 4.61 | E69: 6.92 | F69: 27.79 | G69: 207.00 | H69: 0.21 | I69: 0.00 | J69: 20.00 | K69: 0.45 | L69: 25.19 | M69: 208.85 | N69: 140.52 | O69: 4.72
A70: № 377 Сбор.рец. На прод-ию для обуч. Во всех образ.учреж-Дели 2017 | B70: Чай с сахаром, с лимоном | C70: 185/10/5 | D70: 0.13 | E70: 0.02 | F70: 10.20 | G70: 42.00 | I70: 2.83 | K70: 0.01 | L70: 14.05 | M70: 4.40 | N70: 2.40 | O70: 0.34
A71: Хим.состав и калорийность российских продуктов питания табл 6 стр 134 , 2012 Дели + | B71: Хлеб пшеничный | C71: 25 | D71: 1.54 | E71: 0.20 | F71: 12.30 | G71: 58.75 | H71: 0.03 | I71: 0.00 | J71: 0.00 | K71: 0.28 | L71: 5.00 | M71: 16.25 | N71: 3.50 | O71: 0.28 | P71: 0 | Q71: 0
B72: Итого: | C72: 590 | D72: =D66+D67+D68+D69+D70+D71 -> 20.16 | E72: =E66+E67+E68+E69+E70+E71 -> 20.71 | F72: 80.68 | G72: 601.08 | H72: 0.33 | I72: 41.82 | J72: 41.00 | K72: 3.59 | L72: 201.05 | M72: 460.65 | N72: 184.95 | O72: 8.57 | P72: 25% | Q72: 25%
B85: 3 день
A86: № 67 Сбор.рец. На прод-ию для обуч. Во всех образ.учреж-Дели 2017, 366/2016 | B86: Винегрет овощной | C86: 60 | D86: 0.84 | E86: 6.02 | F86: 4.37 | G86: 75.06 | H86: 0.03 | I86: 5.78 | J86: 0.00 | K86: 2.70 | L86: 18.74 | M86: 25.96 | N86: 11.72 | O86: 0.50
A87: № 293 Сбор.рец. На прод-ию для обуч. Во всех образ.учреж-Дели 2017, 366/2016 | B87: Куриные бедра запеченные с томатным соусом | C87: 90/20 | D87: 12.00 | E87: 10.04 | F87: 8.60 | G87: 195.10 | H87: 0.10 | I87: 3.04 | J87: 64.92 | K87: 1.70 | L87: 47.55 | M87: 162.01 | N87: 24.73 | O87: 1.65
A88: № 304 Сбор.рец. На прод-ию для обуч. Во всех образ.учреж-Дели 2017 | B88: Рис отварной рассыпчатый с маслом сливочным | C88: 150/5 | D88: 3.74 | E88: 4.15 | F88: 39.23 | G88: 209.00 | H88: 0.03 | I88: 0.00 | J88: 20.00 | K88: 0.33 | L88: 2.57 | M88: 62.45 | N88: 16.34 | O88: 0.54
A89: № 376 Сбор.рец. На прод-ию для обуч. Во всех образ.учреж-Дели 2017 | B89: Чай с сахаром | C89: 190/10 | D89: 0.07 | E89: 0.02 | F89: 10.00 | G89: 40.00 | I89: 0.03 | L89: 10.95 | M89: 2.80 | N89: 1.40 | O89: 0.26
A90: Хим.состав и калорийность российских продуктов питания табл 6 стр 134 , 2012 Дели + | B90: Хлеб пшеничный | C90: 20 | D90: 1.520 | E90: 0.160 | F90: 9.840 | G90: 47 | H90: 0.022 | I90: 0 | J90: 0 | K90: 0.220 | L90: 4.000 | M90: 13.000 | N90: 2.800 | O90: 0.220 | P90: 0 | Q90: 0
A91: Хим.состав и калорийность российских продуктов питания,табл 6, стр 144 , 2012 Дели + | B91: Хлеб ржаной | C91: 20 | D91: 1.32 | E91: 0.24 | F91: 7.92 | G91: 39.60 | H91: 0.03 | I91: 0.00 | J91: 0.00 | K91: 0.28 | L91: 5.80 | M91: 30.00 | N91: 9.40 | O91: 0.78
B92: Итого: | C92: 565 | D92: =D86+D87+D88+D89+D90+D91 -> 19.49 | E92: 20.63 | F92: 79.97 | G92: 605.76 | H92: 0.21 | I92: 8.84 | J92: 84.92 | K92: 5.23 | L92: 89.61 | M92: 296.22 | N92: 66.39 | O92: 3.94 | P92: 25% | Q92: 25%
B94: 4 день
A95: № 45 Сбор.рец. На прод-ию для обуч. Во всех образ.учреж-Дели -2017 | B95: Салат из белокочанной капусты | C95: 60 | D95: 0.79 | E95: 1.95 | F95: 3.88 | G95: 36.24 | H95: 0.01 | I95: 10.26 | J95: 0.00 | K95: 5.03 | L95: 14.98 | M95: 16.98 | N95: 9.05 | O95: 0.28
A96: № 229 Сбор.рец. На прод-ию для обуч. Во всех образ.учреж-Дели 2017 | B96: Рыба, тушенная в томате с овощами | C96: 50/50 | D96: 9.15 | E96: 5.62 | F96: 7.80 | G96: 105.00 | H96: 0.05 | I96: 3.73 | J96: 5.82 | K96: 2.52 | L96: 39.07 | M96: 162.19 | N96: 48.53 | O96: 0.85
A97: № 312 Сбор.рец. На прод-ию для обуч. Во всех образ.учреж-Дели -2017 | B97: Пюре картофельное с маслом сливочным | C97: 150/5 | D97: 3.10 | E97: 8.43 | F97: 20.51 | G97: 170.25 | H97: 0.14 | I97: 18.16 | J97: 20.00 | K97: 0.23 | L97: 38.18 | M97: 88.10 | N97: 27.75 | O97: 1.02
A98: № 342 Сбор.рец. На прод-ию для обуч. Во всех образ.учреж-Дели 2017 | B98: Компот из свежих яблок (75 С) | C98: 200 | D98: 0.16 | E98: 0.16 | F98: 13.91 | G98: 58.74 | H98: 0.01 | I98: 0.90 | J98: 0.00 | K98: 0.08 | L98: 14.18 | M98: 4.40 | N98: 5.14 | O98: 0.95
A99: Хим.состав и калорийность российских продуктов питания табл 6 стр 134 , 2012 Дели + | B99: Хлеб пшеничный | C99: 20 | D99: 1.520 | E99: 0.160 | F99: 9.840 | G99: 47 | H99: 0.022 | I99: 0 | J99: 0 | K99: 0.220 | L99: 4.000 | M99: 13.000 | N99: 2.800 | O99: 0.220
A100: Хим.состав и калорийность российских продуктов питания,табл 6, стр 144 , 2012 Дели + | B100: Хлеб ржаной | C100: 20 | D100: 1.32 | E100: 0.24 | F100: 7.92 | G100: 39.60 | H100: 0.03 | I100: 0.00 | J100: 0.00 | K100: 0.28 | L100: 5.80 | M100: 30.00 | N100: 9.40 | O100: 0.78
B101: Итого: | C101: 555 | D101: =D95+D96+D97+D98+D99+D100 -> 16.04 | E101: 16.56 | F101: 63.86 | G101: 456.83 | H101: 0.27 | I101: 33.05 | J101: 25.82 | K101: 8.37 | L101: 116.21 | M101: 314.67 | N101: 102.67 | O101: 4.10 | P101: 0.00 | Q101: 0.00
B103: 5 день
A104: Хим.состав и калорийность российских продуктов питания табл 9 стр 184 , 2012 Дели + | B104: Плоды и ягоды свежие (яблоки) | C104: 100 | D104: 0.40 | E104: 0.40 | F104: 9.80 | G104: 47.00 | H104: 0.03 | I104: 10.00 | K104: 0.20 | L104: 16.00 | M104: 11.00 | N104: 9.00 | O104: 2.20
A105: № 15 Сбор.рец. На прод-ию для обуч. Во всех образ.учреж-Дели 2017 | B105: Сыр порционно | C105: 10 | D105: 2.03 | E105: 2.63 | F105: 0.00 | G105: 34.33 | H105: 0.00 | I105: 0.07 | J105: 21.00 | K105: 0.04 | L105: 100.00 | M105: 60.00 | N105: 5.50 | O105: 0.07
A106: № 390,391,392 Сбор.рец. На прод-ию для обуч. Во всех образ.учреж-Дели 2017 | B106: Пельмени мясные отварные с маслом сливочным | C106: 170/5 | D106: 14.04 | E106: 15.868 | F106: 40.822 | G106: 346 | H106: 0.145 | I106: 0.333 | J106: 38.547 | K106: 0.007264957265 | L106: 21.021 | M106: 109.791 | N106: 31.778 | O106: 0.831
A107: № 377 Сбор.рец. На прод-ию для обуч. Во всех образ.учреж-Дели 2017 | B107: Чай с сахаром, с лимоном | C107: 185/10/5 | D107: 0.13 | E107: 0.02 | F107: 10.20 | G107: 42.00 | I107: 2.83 | K107: 0.01 | L107: 14.05 | M107: 4.40 | N107: 2.40 | O107: 0.34
A108: Хим.состав и калорийность российских продуктов питания табл 6 стр 134 , 2012 Дели + | B108: Хлеб пшеничный | C108: 40 | D108: 3.04 | E108: 0.32 | F108: 19.68 | G108: 94.00 | H108: 0.04 | I108: 0.00 | J108: 0.00 | K108: 0.44 | L108: 8.00 | M108: 26.00 | N108: 5.60 | O108: 0.44
B109: Итого: | C109: 525 | D109: =SUM(D104:D108) -> 19.64 | E109: 19.24 | F109: 80.50 | G109: 563.58 | H109: 0.22 | I109: 13.23 | J109: 59.55 | K109: 0.70 | L109: 159.07 | M109: 211.19 | N109: 54.28 | O109: 3.88
B111: 6 день
A112: № 62 Сбор.рец. На прод-ию для обуч. Во всех образ.учреж-Дели -2017 | B112: Салат из моркови с сахаром | C112: 60 | D112: 0.74 | E112: 0.06 | F112: 6.58 | G112: 49.02 | H112: 0.03 | I112: 2.02 | J112: 0.00 | K112: 8.04 | L112: 15.46 | M112: 31.66 | N112: 21.63 | O112: 0.40
A113: № 271 Сбор.рец. На прод-ию для обуч. Во всех образ.учреж-Дели 2017 | B113: Котлеты говяжьи | C113: 90 | D113: 10.18 | E113: 13.75 | F113: 11.77 | G113: 183.40 | H113: 0.05 | I113: 0.00 | J113: 0.00 | K113: 3.11 | L113: 9.38 | M113: 150.08 | N113: 27.54 | O113: 2.41
A114: № 199 Сбор.рец. На прод-ию для обуч. Во всех образ.учреж-Дели 2017 | B114: Гороховое пюре с маслом сливочным | C114: 150/5 | D114: 5.62 | E114: 5.04 | F114: 34.99 | G114: 208.50 | H114: 0.50 | I114: 0.00 | J114: 20.00 | K114: 0.50 | L114: 94.11 | M114: 212.33 | N114: 61.70 | O114: 4.69
A115: № 376 Сбор.рец. На прод-ию для обуч. Во всех образ.учреж-Дели 2017 | B115: Чай с мармеладом | C115: 185/15 | D115: 0.09 | E115: 0.02 | F115: 11.91 | G115: 48.15 | I115: 0.03 | L115: 11.25 | M115: 2.95 | N115: 1.70 | O115: 0.29
A116: Хим.состав и калорийность российских продуктов питания табл 6 стр 134 , 2012 Дели + | B116: Хлеб пшеничный | C116: 20 | D116: 1.520 | E116: 0.160 | F116: 9.840 | G116: 47 | H116: 0.022 | I116: 0 | J116: 0 | K116: 0.220 | L116: 4.000 | M116: 13.000 | N116: 2.800 | O116: 0.220
A117: Хим.состав и калорийность российских продуктов питания,табл 6, стр 144 , 2012 Дели + | B117: Хлеб ржаной | C117: 20 | D117: 1.320 | E117: 0.24 | F117: 7.920 | G117: 40 | H117: 0.034 | I117: 0 | J117: 0 | K117: 0.280 | L117: 5.800 | M117: 30.000 | N117: 9.400 | O117: 0.780
B118: Итого: | C118: 545 | D118: =D112+D113+D114+D115+D116+D117 -> 19.47 | E118: =E112+E113+E114+E115+E116+E117 -> 19.27 | F118: 83.01 | G118: 575.67 | H118: 0.64 | I118: 2.05 | J118: 20.00 | K118: 12.15 | L118: 139.99 | M118: 440.02 | N118: 124.76 | O118: 8.79 | P118: 0.00 | Q118: 0.00
P128: 25% | Q128: 25%
A171: № рецептуры | B171: Наименование блюд | C171: Выход,г | D171: Белки, г | E171: Жиры, г | F171: Углеводы, г | G171: Калорийность, ккал | H171: Витамин B1, мг | I171: Витамин С, мг | J171: Витамин А, мг | K171: Витамин Е, мг | L171: Ca, мг | M171: P, мг | N171: Mg, мг | O171: Fe, мг
B172: 2-ая неделя
B173: 1 день
A174: Хим.состав и калорийность российских продуктов питания табл 9 стр 184 , 2012 Дели + | B174: Плоды и ягоды свежие (яблоки) | C174: 100 | D174: 0.40 | E174: 0.40 | F174: 9.80 | G174: 47.00 | H174: 0.03 | I174: 10.00 | K174: 0.20 | L174: 16.00 | M174: 11.00 | N174: 9.00 | O174: 2.20
A175: №293 Сбор.рец. На прод-ию для обуч. Во всех образ.учреж-Дели 2017 | B175: Птица запеченная | C175: 90 | D175: 10.610 | E175: 15.964 | F175: 0.000 | G175: 202 | H175: 0.072 | I175: 2.430 | J175: 96.48 | K175: 1.908 | L175: 48.690 | M175: 171.522 | N175: 22.428 | O175: 1.980
A176: № 203 Сбор.рец. На прод-ию для обуч. Во всех образ.учреж-Дели 2017 | B176: Макаронные изделия отварные с маслом сливочным | C176: 150/3 | D176: 5.10 | E176: 2.85 | F176: 31.96 | G176: 186.10 | H176: 0.06 | I176: 0.00 | J176: 12.00 | K176: 0.80 | L176: 11.91 | M176: 38.07 | N176: 8.62 | O176: 0.86
A177: № 376 Сбор.рец. На прод-ию для обуч. Во всех образ.учреж-Дели 2017 | B177: Чай с сахаром,с яблоком | C177: 180/10/10 | D177: 0.110 | E177: 0.060 | F177: 12.690 | G177: 45 | H177: 0.003 | I177: 1.030 | K177: 0.020 | L177: 12.700 | M177: 3.900 | N177: 2.300 | O177: 0.500
A178: Хим.состав и калорийность российских продуктов питания табл 6 стр 134 , 2012 Дели + | B178: Хлеб пшеничный | C178: 35 | D178: 2.660 | E178: 0.280 | F178: 17.220 | G178: 82 | H178: 0.039 | I178: 0 | J178: 0 | K178: 0.385 | L178: 7.000 | M178: 22.750 | N178: 4.900 | O178: 0.385 | P178: 0 | Q178: 0
A179: Хим.состав и калорийность российских продуктов питания,табл 6, стр 144 , 2012 Дели + | B179: Хлеб ржаной | C179: 20 | D179: 1.320 | E179: 0.240 | F179: 7.920 | G179: 40 | H179: 0.034 | I179: 0 | J179: 0 | K179: 0.280 | L179: 5.800 | M179: 30.000 | N179: 9.400 | O179: 0.780
B180: Итого: | C180: 598 | D180: =SUM(D174:D179) -> 20.20 | E180: 19.79 | F180: 79.59 | G180: 602.00 | H180: 0.23 | I180: 13.46 | J180: 108.48 | K180: 3.60 | L180: 102.10 | M180: 277.24 | N180: 56.65 | O180: 6.70 | P180: 25% | Q180: 25%
B182: 2 день
A183: №3 Сбор.рец. На прод-ию для обуч. Во всех образ.учреж-Дели 2017 | B183: Бутерброд с маслом сливочным и сыром | C183: 60 | D183: 7.03 | E183: 7.94 | F183: 19.75 | G183: 178.50 | H183: 0.05 | I183: 0.11 | J183: 51.50 | K183: 0.56 | L183: 159.20 | M183: 117.50 | N183: 13.85 | O183: 0.56
A184: №143,241 Сбор.рец. На прод-ию для обуч. Во всех образ.учреж-Дели 2017 | B184: Овощи тушеные с мясом | C184: 50/150 | D184: 9.10 | E184: 10.28 | F184: 22.34 | G184: 211.35 | H184: 0.11 | I184: 18.78 | J184: 39.00 | K184: 0.00 | L184: 68.94 | M184: 172.79 | N184: 38.24 | O184: 2.68
A185: ТТК | B185: Чай "Витаминный" с ягодами | C185: 185/10/5 | D185: 0.24 | E185: 0.09 | F185: 12.42 | G185: 54.20 | H185: 0.00 | I185: 50.03 | J185: 0.00 | K185: 0.19 | L185: 13.95 | M185: 3.65 | N185: 2.25 | O185: 0.41
A186: промышленного выпуска | B186: Батончик злаковый | C186: 24 | D186: 1.20 | E186: 1.92 | F186: 17.52 | G186: 93.60
A187: Хим.состав и калорийность российских продуктов питания,табл 6, стр 144 , 2012 Дели + | B187: Хлеб ржаной | C187: 40 | D187: 2.64 | E187: 0.48 | F187: 15.84 | G187: 79.20 | H187: 0.07 | I187: 0.00 | J187: 0.00 | K187: 0.56 | L187: 11.60 | M187: 60.00 | N187: 18.80 | O187: 1.56 | P187: 0 | Q187: 0%
B188: Итого: | C188: 524 | D188: =D183+D184+D185+D186+D187 -> 20.21 | E188: =E183+E184+E185+E186+E187 -> 20.71 | F188: 87.87 | G188: 616.85 | H188: 0.24 | I188: 68.92 | J188: 90.50 | K188: 1.31 | L188: 253.69 | M188: 353.94 | N188: 73.14 | O188: 5.21 | P188: 25% | Q188: 25%
B190: 3 день
A191: № 52 Сбор.рец. На прод-ию для обуч. Во всех образ.учреж-Дели -2017 | B191: Салат из свеклы отварной | C191: 60 | D191: 0.84 | E191: 3.61 | F191: 4.96 | G191: 55.68 | H191: 0.01 | I191: 3.99 | J191: 0.00 | K191: 1.62 | L191: 21.28 | M191: 24.38 | N191: 12.42 | O191: 0.79
A192: № 294 Сбор.рец. На прод-ию для обуч. Во всех образ.учреж-Дели -2017 | B192: Котлеты из мяса кур | C192: 90 | D192: 11.85 | E192: 8.06 | F192: 18.53 | G192: 198.00 | H192: 0.18 | I192: 0.81 | J192: 12.42 | K192: 61.47 | L192: 51.64 | M192: 69.30 | N192: 19.98 | O192: 3.24
A193: № 312 Сбор.рец. На прод-ию для обуч. Во всех образ.учреж-Дели -2017 | B193: Пюре картофельное с маслом сливочным | C193: 150/5 | D193: 3.13 | E193: 8.43 | F193: 20.51 | G193: 170.25 | H193: 0.14 | I193: 18.16 | J193: 20.00 | K193: 0.23 | L193: 38.18 | M193: 88.10 | N193: 27.75 | O193: 1.02
A194: № 376 Сбор.рец. На прод-ию для обуч. Во всех образ.учреж-Дели 2017 | B194: Чай с сахаром | C194: 190/10 | D194: 0.07 | E194: 0.02 | F194: 10.00 | G194: 40.00 | I194: 0.03 | L194: 10.95 | M194: 2.80 | N194: 1.40 | O194: 0.26
A195: Хим.состав и калорийность российских продуктов питания табл 6 стр 134 , 2012 Дели + | B195: Хлеб пшеничный | C195: 35 | D195: 2.660 | E195: 0.280 | F195: 17.220 | G195: 82 | H195: 0.039 | I195: 0 | J195: 0 | K195: 0.385 | L195: 7.000 | M195: 22.750 | N195: 4.900 | O195: 0.385
A196: Хим.состав и калорийность российских продуктов питания,табл 6, стр 144 , 2012 Дели + | B196: Хлеб ржаной | C196: 25 | D196: 1.650 | E196: 0.300 | F196: 9.900 | G196: 50 | H196: 0.043 | I196: 0 | J196: 0 | K196: 0.350 | L196: 7.250 | M196: 37.500 | N196: 11.750 | O196: 0.975
B197: Итого: | C197: 565 | D197: =SUM(D191:D196) -> 20.20 | E197: =SUM(E191:E196) -> 20.70 | F197: 81.11 | G197: 595.68 | H197: 0.41 | I197: 22.99 | J197: 32.42 | K197: 64.06 | L197: 136.30 | M197: 244.82 | N197: 78.20 | O197: 6.67 | P197: 25% | Q197: 25%
B199: 4 день
A200: Хим.состав и калорийность российских продуктов питания табл 9 стр 186 , 2012 Дели + | B200: Плоды и ягоды свежие (мандарин) | C200: 100 | D200: 0.8 | E200: 0.20 | F200: 7.5 | G200: 38.0 | H200: 0.06 | I200: 38.00 | K200: 0.20 | L200: 35.00 | M200: 17.00 | N200: 11.00 | O200: 0.10
A201: №279,331 Сбор.рец. На прод-ию для питания детей в дошк образоват учрежд-Дели 2017 | B201: Тефтели мясные в сметанно-томатном соусе | C201: 60/40 | D201: 7.284 | E201: 11.790 | F201: 8.738 | G201: 133.99 | H201: 0.048 | I201: 0.276 | J201: 29.620 | K201: 0.421 | L201: 20.726 | M201: 80.202 | N201: 15.521 | O201: 0.640
A202: № 203 Сбор.рец. На прод-ию для обуч. Во всех образ.учреж-Дели 2017 | B202: Макаронные изделия отварные с маслом сливочным | C202: 150/3 | D202: 5.10 | E202: 2.85 | F202: 31.96 | G202: 176.10 | H202: 0.06 | I202: 0.00 | J202: 12.00 | K202: 0.80 | L202: 11.91 | M202: 38.07 | N202: 8.62 | O202: 0.86
A203: ТТК | B203: Напиток из свежих фруктов (75С) | C203: 200 | D203: 0.34 | E203: 0.17 | F203: 11.48 | G203: 63.60 | H203: 0.02 | I203: 3.17 | J203: 0.00 | K203: 0.13 | L203: 16.67 | M203: 7.05 | N203: 7.78 | O203: 0.88
A204: Хим.состав и калорийность российских продуктов питания табл 6 стр 134 , 2012 Дели + | B204: Хлеб пшеничный | C204: 20 | D204: 1.520 | E204: 0.160 | F204: 9.840 | G204: 47 | H204: 0.022 | I204: 0 | J204: 0 | K204: 0.220 | L204: 4.000 | M204: 13.000 | N204: 2.800 | O204: 0.220
B205: Итого: | C205: 573 | D205: =SUM(D200:D204) -> 15.04 | E205: =SUM(E200:E204) -> 15.17 | F205: 69.52 | G205: 458.69 | H205: 0.21 | I205: 41.45 | J205: 41.62 | K205: 1.77 | L205: 88.31 | M205: 155.32 | N205: 45.72 | O205: 2.70 | P205: 0.00 | Q205: 0.00
B207: 5 день
A208: № 45 Сбор.рец. На прод-ию для обуч. Во всех образ.учреж-Дели -2017 | B208: Салат из свежей капусты с морковью | C208: 60 | D208: 0.79 | E208: 1.95 | F208: 3.88 | G208: 36.24 | H208: 0.01 | I208: 10.26 | J208: 0.00 | K208: 5.03 | L208: 14.98 | M208: 16.98 | N208: 9.05 | O208: 0.28
A209: № 265 Сбор.рец. На прод-ию для обуч. Во всех образ.учреж-Дели -2017 | B209: Плов из говядины с рисом | C209: 50/150 | D209: 16.03 | E209: 18.16 | F209: 45.91 | G209: 415.89 | H209: 0.07 | I209: 1.80 | J209: 0.00 | K209: 4.00 | L209: 18.14 | M209: 242.92 | N209: 51.52 | O209: 3.39
A210: № 376 Сбор.рец. На прод-ию для обуч. Во всех образ.учреж-Дели 2017 | B210: Чай с сахаром,с яблоком | C210: 180/10/10 | D210: 0.11 | E210: 0.06 | F210: 10.990 | G210: 45 | H210: 0.003 | I210: 1.03 | K210: 0.02 | L210: 12.700 | M210: 3.9 | N210: 2.3 | O210: 0.500
A211: Хим.состав и калорийность российских продуктов питания табл 6 стр 134 , 2012 Дели + | B211: Хлеб пшеничный | C211: 25 | D211: 1.900 | E211: 0.200 | F211: 12.300 | G211: 59 | H211: 0.028 | I211: 0 | J211: 0 | K211: 0.275 | L211: 5.000 | M211: 16.250 | N211: 3.500 | O211: 0.275
A212: Хим.состав и калорийность российских продуктов питания,табл 6, стр 144 , 2012 Дели + | B212: Хлеб ржаной | C212: 20 | D212: 1.320 | E212: 0.240 | F212: 7.920 | G212: 40 | H212: 0.034 | I212: 0 | J212: 0 | K212: 0.280 | L212: 5.800 | M212: 30.000 | N212: 9.400 | O212: 0.780 | P212: 0 | Q212: 0
B213: Итого: | C213: 505 | D213: =D208+D209+D210+D211+D212 -> 20.15 | E213: =E208+E209+E210+E211+E212 -> 20.61 | F213: 80.99 | G213: 595.53 | H213: 0.15 | I213: 13.08 | J213: 0.00 | K213: 9.61 | L213: 56.62 | M213: 310.05 | N213: 75.77 | O213: 5.23 | P213: =P208+P209+#REF!+P210+P212 ->  | Q213: =Q208+Q209+#REF!+Q210+Q212 -> 
B215: 6 день
A216: Хим.состав и калорийность российских продуктов питания табл 9 стр 184 , 2012 Дели + | B216: Плоды и ягоды свежие (яблоки) | C216: 100 | D216: 0.4 | E216: 0.4 | F216: 9.8 | G216: 47 | H216: 0.03 | I216: 10 | K216: 0.2 | L216: 16 | M216: 11 | N216: 9 | O216: 2.2
A217: № 234,330 Сбор.рец. На прод-ию для обуч. Во всех образ.учреж-Дели 2017 | B217: Биточки рыбные в сметанном соусе | C217: 80/20 | D217: 9.105 | E217: 10.100 | F217: 12.917 | G217: 146.52 | H217: 0.052 | I217: 0.536 | J217: 10.920 | K217: 4.079 | L217: 32.804 | M217: 120.770 | N217: 19.248 | O217: 1.066
A218: № 303 Сбор.рец. На прод-ию для обуч. Во всех образ.учреж-Дели 2017 | B218: Каша гречневая вязкая | C218: 150 | D218: 4.580 | E218: 5.007 | F218: 20.522 | G218: 145.50 | H218: 0.116 | I218: 0.000 | J218: 0.000 | K218: 0.344 | L218: 8.445 | M218: 108.870 | N218: 72.030 | O218: 2.423
A219: № 376 Сбор.рец. На прод-ию для обуч. Во всех образ.учреж-Дели 2017 | B219: Чай с мармеладом | C219: 185/15 | D219: 0.09 | E219: 0.02 | F219: 11.91 | G219: 48.15 | I219: 0.03 | L219: 11.25 | M219: 2.95 | N219: 1.70 | O219: 0.29
A220: Хим.состав и калорийность российских продуктов питания,табл 6, стр 144 , 2012 Дели + | B220: Хлеб ржаной | C220: 30 | D220: 1.980 | E220: 0.360 | F220: 11.880 | G220: 59 | H220: 0.034 | I220: 0 | J220: 0 | K220: 0.280 | L220: 5.800 | M220: 30.000 | N220: 9.400 | O220: 0.780
B221: Итого: | C221: 580 | D221: =SUM(D216:D220) -> 16.15 | E221: =SUM(E216:E220) -> 15.89 | F221: 67.03 | G221: 446.57 | H221: 0.23 | I221: 10.57 | J221: 10.92 | K221: 4.90 | L221: 74.30 | M221: 273.59 | N221: 111.38 | O221: 6.76 | P221: 25% | Q221: 25%
B222: ВСЕГО за 12 дней: | C222: =C63+C72+C92+C101+C118+C109+C180+C188+C197+C205+C213+C221 -> 6700 | D222: 226.35 | E222: 229.74 | F222: 942.04 | G222: 6734.55 | H222: 3.53 | I222: 273.01 | J222: 537.97 | K222: 121.57 | L222: 1516.04 | M222: 3640.63 | N222: 1070.45 | O222: 68.91
B223: В среднем на 1 учащегося в день: | C223: =C222/12 -> 558 | D223: =D222/12 -> 18.86 | E223: 19.14 | F223: 78.50 | G223: 561.21 | H223: 0.29 | I223: 22.75 | J223: 44.83 | K223: 10.13 | L223: 126.34 | M223: 303.39 | N223: 89.20 | O223: 5.74 | P223: 25%
